[Event "Early-Titled-Tuesday-Blitz-June-18-2024"]
[Site "Chess.com"]
[Date "2024.06.18"]
[Round "10"]
[White "mangochessgo"]
[Black "Witik"]
[Result "0-1"]
[WhiteElo "2672"]
[BlackElo "2814"]
[TimeControl "180+1"]
[EndTime "9:58:02 PDT"]
[Termination "Witik won by resignation"]

1. d4 {[%clk 0:02:55.3]} 1... Nf6 {[%clk 0:02:57.7]} 2. Nf3 {[%clk 0:02:55.6]}
2... g6 {[%clk 0:02:57.6]} 3. Bg5 {[%clk 0:02:55.5]} 3... Bg7 {[%clk 0:02:57.9]}
4. Nbd2 {[%clk 0:02:56.2]} 4... d5 {[%clk 0:02:58.6]} 5. c3 {[%clk 0:02:56.7]}
5... O-O {[%clk 0:02:58.8]} 6. e3 {[%clk 0:02:56.6]} 6... Nbd7 {[%clk
0:02:59.4]} 7. Bd3 {[%clk 0:02:55.9]} 7... c5 {[%clk 0:03:00]} 8. O-O {[%clk
0:02:55.6]} 8... Re8 {[%clk 0:03:00.6]} 9. h3 {[%clk 0:02:55.7]} 9... e5 {[%clk
0:03:00.3]} 10. dxe5 {[%clk 0:02:55.1]} 10... Nxe5 {[%clk 0:03:00.5]} 11. Nxe5
{[%clk 0:02:55.8]} 11... Rxe5 {[%clk 0:03:01.1]} 12. Nf3 {[%clk 0:02:56.4]}
12... Re8 {[%clk 0:03:01.7]} 13. Bf4 {[%clk 0:02:53.8]} 13... Qb6 {[%clk
0:02:58.4]} 14. Qb3 {[%clk 0:02:47]} 14... Be6 {[%clk 0:02:56.2]} 15. Rfd1
{[%clk 0:02:31.4]} 15... Qxb3 {[%clk 0:02:40.5]} 16. axb3 {[%clk 0:02:31.3]}
16... Ne4 {[%clk 0:02:41.3]} 17. Ng5 {[%clk 0:02:22.8]} 17... Nxg5 {[%clk
0:02:38.4]} 18. Bxg5 {[%clk 0:02:23.2]} 18... a6 {[%clk 0:02:25.9]} 19. Be2
{[%clk 0:02:17.5]} 19... d4 {[%clk 0:02:25.1]} 20. cxd4 {[%clk 0:01:57.5]} 20...
Bxb3 {[%clk 0:02:24.9]} 21. Rd2 {[%clk 0:01:52.6]} 21... cxd4 {[%clk 0:02:24]}
22. exd4 {[%clk 0:01:52.9]} 22... h6 {[%clk 0:02:02.7]} 23. Be3 {[%clk
0:01:52.4]} 23... Red8 {[%clk 0:01:57.2]} 24. Rc1 {[%clk 0:01:41.1]} 24... Bd5
{[%clk 0:01:53.9]} 25. Rdc2 {[%clk 0:01:36.1]} 25... Bf8 {[%clk 0:01:49.2]} 26.
g4 {[%clk 0:01:32.3]} 26... Bc6 {[%clk 0:01:22.8]} 27. Bc4 {[%clk 0:01:23.8]}
27... Bg7 {[%clk 0:01:13.3]} 28. b4 {[%clk 0:01:00]} 28... g5 {[%clk 0:01:04.3]}
29. Rd2 {[%clk 0:00:48.8]} 29... Bd5 {[%clk 0:00:58.4]} 30. Bf1 {[%clk
0:00:47.8]} 30... Rac8 {[%clk 0:00:52.3]} 31. Rc5 {[%clk 0:00:47]} 31... Bf8
{[%clk 0:00:50.5]} 32. Rxc8 {[%clk 0:00:29.1]} 32... Rxc8 {[%clk 0:00:51.4]} 33.
b5 {[%clk 0:00:29.4]} 33... axb5 {[%clk 0:00:43]} 34. Rb2 {[%clk 0:00:14.5]}
34... b4 {[%clk 0:00:42.4]} 35. f4 {[%clk 0:00:12.6]} 35... f6 {[%clk
0:00:25.5]} 36. Bg2 {[%clk 0:00:10.4]} 36... Bxg2 {[%clk 0:00:22.3]} 37. Kxg2
{[%clk 0:00:11.3]} 37... Rc3 {[%clk 0:00:21]} 38. Kf3 {[%clk 0:00:11.2]} 38...
b3 {[%clk 0:00:18.4]} 39. Ke4 {[%clk 0:00:10]} 39... Ba3 {[%clk 0:00:18.2]} 40.
Rb1 {[%clk 0:00:09.3]} 40... b2 {[%clk 0:00:18.1]} 41. fxg5 {[%clk 0:00:04.4]}
41... hxg5 {[%clk 0:00:14.2]} 42. d5 {[%clk 0:00:04.1]} 42... Rc1 {[%clk
0:00:10.6]} 43. Bxc1 {[%clk 0:00:02]} 43... bxc1=Q {[%clk 0:00:11]} 44. Rxc1
{[%clk 0:00:02.7]} 44... Bxc1 {[%clk 0:00:11.9]} 45. Kf5 {[%clk 0:00:03.2]}
45... Kf7 {[%clk 0:00:10.7]} 46. d6 {[%clk 0:00:03.6]} 46... Ba3 {[%clk
0:00:10.7]} 47. d7 {[%clk 0:00:03.7]} 47... Be7 {[%clk 0:00:11.4]} 48. Ke4
{[%clk 0:00:02.2]} 48... Ke6 {[%clk 0:00:10.7]} 0-1

[Event "Early-Titled-Tuesday-Blitz-June-18-2024"]
[Site "Chess.com"]
[Date "2024.06.18"]
[Round "10"]
[White "Naruto75_3"]
[Black "jk13"]
[Result "1-0"]
[WhiteElo "2539"]
[BlackElo "2688"]
[TimeControl "180+1"]
[EndTime "9:58:02 PDT"]
[Termination "Naruto75_3 won on time"]

1. d4 {[%clk 0:03:00.9]} 1... Nf6 {[%clk 0:02:59.7]} 2. c4 {[%clk 0:03:01.1]}
2... e6 {[%clk 0:03:00.3]} 3. Nc3 {[%clk 0:03:01.2]} 3... Bb4 {[%clk 0:03:00.8]}
4. Qc2 {[%clk 0:03:01.2]} 4... h6 {[%clk 0:02:58.8]} 5. a3 {[%clk 0:03:00.5]}
5... Bxc3+ {[%clk 0:02:57.8]} 6. Qxc3 {[%clk 0:03:01.3]} 6... O-O {[%clk
0:02:56.8]} 7. Nf3 {[%clk 0:02:59.4]} 7... b6 {[%clk 0:02:56]} 8. e3 {[%clk
0:02:59.2]} 8... Bb7 {[%clk 0:02:56.6]} 9. Bd3 {[%clk 0:02:58.5]} 9... c5 {[%clk
0:02:55.1]} 10. b3 {[%clk 0:02:55.5]} 10... Be4 {[%clk 0:02:54.5]} 11. Bb2
{[%clk 0:02:54.3]} 11... d6 {[%clk 0:02:48.5]} 12. Nd2 {[%clk 0:02:53.8]} 12...
Bxd3 {[%clk 0:02:44.5]} 13. Qxd3 {[%clk 0:02:54.7]} 13... Qe7 {[%clk 0:02:40.3]}
14. O-O {[%clk 0:02:52]} 14... Rd8 {[%clk 0:02:31.5]} 15. Rad1 {[%clk
0:02:50.3]} 15... Nc6 {[%clk 0:02:04.7]} 16. f4 {[%clk 0:02:42.8]} 16... cxd4
{[%clk 0:01:47.5]} 17. exd4 {[%clk 0:02:43.6]} 17... d5 {[%clk 0:01:48.1]} 18.
Nf3 {[%clk 0:02:34.6]} 18... Rac8 {[%clk 0:01:38.6]} 19. Rfe1 {[%clk 0:02:31.8]}
19... Qc7 {[%clk 0:01:32.5]} 20. Ne5 {[%clk 0:02:23.9]} 20... Nxe5 {[%clk
0:01:03.9]} 21. fxe5 {[%clk 0:02:24.8]} 21... Ne4 {[%clk 0:01:04.4]} 22. Bc1
{[%clk 0:02:19.2]} 22... Qe7 {[%clk 0:01:01.2]} 23. Re3 {[%clk 0:02:05]} 23...
Rf8 {[%clk 0:00:52]} 24. Rf1 {[%clk 0:01:58.9]} 24... f5 {[%clk 0:00:49.6]} 25.
Rh3 {[%clk 0:01:51.9]} 25... dxc4 {[%clk 0:00:41.6]} 26. bxc4 {[%clk 0:01:52.7]}
26... Qc7 {[%clk 0:00:39.8]} 27. Qf3 {[%clk 0:01:30.9]} 27... Qxc4 {[%clk
0:00:39.3]} 28. Be3 {[%clk 0:01:25.2]} 28... Rf7 {[%clk 0:00:28.7]} 29. g4
{[%clk 0:01:19.2]} 29... Qd3 {[%clk 0:00:23.9]} 30. Rd1 {[%clk 0:01:14]} 30...
Qxa3 {[%clk 0:00:21.9]} 31. gxf5 {[%clk 0:01:07.3]} 31... Ng5 {[%clk 0:00:18.3]}
32. Bxg5 {[%clk 0:00:59.1]} 32... Qxf3 {[%clk 0:00:17.9]} 33. Rxf3 {[%clk
0:01:00]} 33... hxg5 {[%clk 0:00:18.4]} 34. d5 {[%clk 0:00:55]} 34... Rxf5
{[%clk 0:00:16.6]} 35. Rxf5 {[%clk 0:00:54.1]} 35... exf5 {[%clk 0:00:17.5]} 36.
e6 {[%clk 0:00:54.2]} 36... Kf8 {[%clk 0:00:12.3]} 37. d6 {[%clk 0:00:52.9]}
37... Rb8 {[%clk 0:00:06.9]} 38. Rc1 {[%clk 0:00:52.2]} 38... b5 {[%clk
0:00:05.5]} 39. Rc7 {[%clk 0:00:44.8]} 39... b4 {[%clk 0:00:04.1]} 40. e7+
{[%clk 0:00:43.9]} 40... Ke8 {[%clk 0:00:03.7]} 41. d7+ {[%clk 0:00:43.3]} 41...
Kxe7 {[%clk 0:00:03.6]} 42. Rc8 {[%clk 0:00:43.5]} 42... Kxd7 {[%clk 0:00:01]}
43. Rxb8 {[%clk 0:00:40.9]} 43... a5 {[%clk 0:00:01.7]} 44. Rb5 {[%clk
0:00:40.9]} 44... Ke6 {[%clk 0:00:01.4]} 45. Rxa5 {[%clk 0:00:40.9]} 45... g4
{[%clk 0:00:01.8]} 46. Rb5 {[%clk 0:00:41]} 46... Kf6 {[%clk 0:00:02.4]} 47.
Rxb4 {[%clk 0:00:41.1]} 47... Kg5 {[%clk 0:00:03.3]} 48. Kg2 {[%clk 0:00:40.3]}
48... Kh4 {[%clk 0:00:02.9]} 49. Rb5 {[%clk 0:00:36]} 49... g6 {[%clk
0:00:02.9]} 50. Rb6 {[%clk 0:00:34.3]} 50... Kg5 {[%clk 0:00:02.2]} 51. Rb5
{[%clk 0:00:33.9]} 51... Kh4 {[%clk 0:00:02.2]} 52. Rb8 {[%clk 0:00:33.4]} 52...
f4 {[%clk 0:00:02.1]} 53. Rb4 {[%clk 0:00:29.6]} 53... Kg5 {[%clk 0:00:01.6]}
54. h3 {[%clk 0:00:27.3]} 1-0

[Event "Early-Titled-Tuesday-Blitz-June-18-2024"]
[Site "Chess.com"]
[Date "2024.06.18"]
[Round "10"]
[White "MarlonJodar"]
[Black "FMalexhdez"]
[Result "1-0"]
[WhiteElo "2352"]
[BlackElo "2279"]
[TimeControl "180+1"]
[EndTime "9:58:03 PDT"]
[Termination "MarlonJodar won by checkmate"]

1. e4 {[%clk 0:02:49.1]} 1... c5 {[%clk 0:02:59.8]} 2. Nf3 {[%clk 0:02:48.9]}
2... d6 {[%clk 0:02:59.7]} 3. d4 {[%clk 0:02:49.8]} 3... cxd4 {[%clk 0:02:59.9]}
4. Nxd4 {[%clk 0:02:50.7]} 4... Nf6 {[%clk 0:03:00]} 5. Nc3 {[%clk 0:02:51]}
5... a6 {[%clk 0:03:00.3]} 6. Bg5 {[%clk 0:02:51.7]} 6... e6 {[%clk 0:02:59.6]}
7. f4 {[%clk 0:02:52.4]} 7... Be7 {[%clk 0:02:59.7]} 8. Qf3 {[%clk 0:02:52.7]}
8... Qc7 {[%clk 0:02:59.5]} 9. O-O-O {[%clk 0:02:53]} 9... b5 {[%clk 0:02:58.7]}
10. g4 {[%clk 0:02:53]} 10... Bb7 {[%clk 0:02:58.3]} 11. Bxf6 {[%clk 0:02:40.1]}
11... Bxf6 {[%clk 0:02:56.5]} 12. g5 {[%clk 0:02:38.9]} 12... Be7 {[%clk
0:02:56.6]} 13. f5 {[%clk 0:02:34.3]} 13... e5 {[%clk 0:02:56.7]} 14. Nb3 {[%clk
0:02:24.3]} 14... Nd7 {[%clk 0:02:53.7]} 15. Rg1 {[%clk 0:02:16.4]} 15... Rc8
{[%clk 0:02:31.8]} 16. f6 {[%clk 0:02:00.1]} 16... gxf6 {[%clk 0:02:29.4]} 17.
gxf6 {[%clk 0:01:58.8]} 17... Nxf6 {[%clk 0:02:28]} 18. Bh3 {[%clk 0:01:56.9]}
18... b4 {[%clk 0:02:15.5]} 19. Bxc8 {[%clk 0:01:54.4]} 19... bxc3 {[%clk
0:02:15.5]} 20. Bxb7 {[%clk 0:01:52.3]} 20... cxb2+ {[%clk 0:02:15.7]} 21. Kb1
{[%clk 0:01:52.1]} 21... Qxb7 {[%clk 0:02:16.3]} 22. Rde1 {[%clk 0:01:29.1]}
22... Kd7 {[%clk 0:02:02]} 23. Rg7 {[%clk 0:01:15.5]} 23... Rf8 {[%clk
0:01:57.5]} 24. Qd3 {[%clk 0:00:49.8]} 24... Qc6 {[%clk 0:01:32]} 25. Na5 {[%clk
0:00:44.5]} 25... Qb5 {[%clk 0:01:25.2]} 26. Qxb5+ {[%clk 0:00:41]} 26... axb5
{[%clk 0:01:25.4]} 27. Kxb2 {[%clk 0:00:41.6]} 27... Ke6 {[%clk 0:01:22.7]} 28.
Nc6 {[%clk 0:00:30.3]} 28... Bd8 {[%clk 0:01:15.8]} 29. Nxd8+ {[%clk 0:00:27.4]}
29... Rxd8 {[%clk 0:01:15.2]} 30. Kb3 {[%clk 0:00:23.6]} 30... Rc8 {[%clk
0:01:14.5]} 31. Rg2 {[%clk 0:00:19.6]} 31... Rc4 {[%clk 0:01:14.1]} 32. Rge2
{[%clk 0:00:19.7]} 32... Nd7 {[%clk 0:01:08.4]} 33. Re3 {[%clk 0:00:17.7]} 33...
Nc5+ {[%clk 0:01:08.1]} 34. Kb2 {[%clk 0:00:18.4]} 34... f6 {[%clk 0:00:55.4]}
35. c3 {[%clk 0:00:15.2]} 35... d5 {[%clk 0:00:55.4]} 36. exd5+ {[%clk
0:00:14.8]} 36... Kxd5 {[%clk 0:00:55.8]} 37. Rd1+ {[%clk 0:00:15.5]} 37... Ke6
{[%clk 0:00:55.9]} 38. Rh3 {[%clk 0:00:16]} 38... e4 {[%clk 0:00:50.3]} 39. Rxh7
{[%clk 0:00:15.3]} 39... Na4+ {[%clk 0:00:47.5]} 40. Ka1 {[%clk 0:00:13]} 40...
Nxc3 {[%clk 0:00:44.4]} 41. Re1 {[%clk 0:00:13.2]} 41... Ra4 {[%clk 0:00:34.6]}
42. Kb2 {[%clk 0:00:13]} 42... b4 {[%clk 0:00:34.4]} 43. Rb7 {[%clk 0:00:09.6]}
43... Rxa2+ {[%clk 0:00:25.8]} 44. Kb3 {[%clk 0:00:09.8]} 44... f5 {[%clk
0:00:22.6]} 45. Rxb4 {[%clk 0:00:07.6]} 45... Rxh2 {[%clk 0:00:19.3]} 46. Kxc3
{[%clk 0:00:06.6]} 46... Ke5 {[%clk 0:00:19.7]} 47. Rb5+ {[%clk 0:00:06.3]}
47... Ke6 {[%clk 0:00:17.8]} 48. Rf1 {[%clk 0:00:05.5]} 48... Rh3+ {[%clk
0:00:17.7]} 49. Kc4 {[%clk 0:00:04.7]} 49... Rh5 {[%clk 0:00:11.8]} 50. Kd4
{[%clk 0:00:04.8]} 50... Kf6 {[%clk 0:00:10.3]} 51. Rb6+ {[%clk 0:00:05.3]}
51... Kg5 {[%clk 0:00:10]} 52. Ke5 {[%clk 0:00:05.6]} 52... Kg4 {[%clk
0:00:09.2]} 53. Rg6+ {[%clk 0:00:05.3]} 53... Kh3 {[%clk 0:00:09.2]} 54. Rh1#
{[%clk 0:00:05]} 1-0

[Event "Early-Titled-Tuesday-Blitz-June-18-2024"]
[Site "Chess.com"]
[Date "2024.06.18"]
[Round "10"]
[White "kyuotbi"]
[Black "DeArron_Fox"]
[Result "1-0"]
[WhiteElo "2348"]
[BlackElo "2459"]
[TimeControl "180+1"]
[EndTime "9:58:06 PDT"]
[Termination "kyuotbi won by checkmate"]

1. e4 {[%clk 0:03:00.9]} 1... c5 {[%clk 0:02:55.8]} 2. Nf3 {[%clk 0:03:00]} 2...
e6 {[%clk 0:02:51.2]} 3. d4 {[%clk 0:03:00]} 3... cxd4 {[%clk 0:02:39.6]} 4.
Nxd4 {[%clk 0:02:59.4]} 4... a6 {[%clk 0:02:40.1]} 5. Bd3 {[%clk 0:02:57.3]}
5... Bc5 {[%clk 0:02:39.3]} 6. Nb3 {[%clk 0:02:56.7]} 6... Ba7 {[%clk
0:02:39.5]} 7. O-O {[%clk 0:02:56.8]} 7... Ne7 {[%clk 0:02:39.2]} 8. Qg4 {[%clk
0:02:55.8]} 8... O-O {[%clk 0:02:36.2]} 9. Nc3 {[%clk 0:02:55.7]} 9... Nbc6
{[%clk 0:02:34.8]} 10. Qg3 {[%clk 0:02:50]} 10... f5 {[%clk 0:02:04.3]} 11. Bf4
{[%clk 0:02:32.3]} 11... fxe4 {[%clk 0:00:47.8]} 12. Nxe4 {[%clk 0:02:21.3]}
12... Nf5 {[%clk 0:00:43.2]} 13. Qh3 {[%clk 0:02:18.3]} 13... d5 {[%clk
0:00:39.7]} 14. Nd6 {[%clk 0:01:37.3]} 14... Nce7 {[%clk 0:00:28.4]} 15. Nxc8
{[%clk 0:01:16.9]} 15... Rxc8 {[%clk 0:00:23.6]} 16. Rae1 {[%clk 0:01:16.5]}
16... Qd7 {[%clk 0:00:18.5]} 17. Be5 {[%clk 0:01:13.2]} 17... Ng6 {[%clk
0:00:11.8]} 18. Kh1 {[%clk 0:01:04.4]} 18... Nxe5 {[%clk 0:00:04.4]} 19. Rxe5
{[%clk 0:01:04.9]} 19... Bb8 {[%clk 0:00:04.6]} 20. Re2 {[%clk 0:01:03.8]} 20...
g6 {[%clk 0:00:02.8]} 21. f4 {[%clk 0:00:53.8]} 21... e5 {[%clk 0:00:01.4]} 22.
fxe5 {[%clk 0:00:52.9]} 22... Ng3+ {[%clk 0:00:01.6]} 23. hxg3 {[%clk
0:00:50.1]} 23... Rxf1+ {[%clk 0:00:01.7]} 24. Kh2 {[%clk 0:00:50.7]} 24...
Qxh3+ {[%clk 0:00:02.5]} 25. gxh3 {[%clk 0:00:51]} 25... Re8 {[%clk 0:00:02.4]}
26. e6 {[%clk 0:00:49.8]} 26... Rf6 {[%clk 0:00:02.8]} 27. Nc5 {[%clk
0:00:37.1]} 27... Ba7 {[%clk 0:00:03.3]} 28. Nd7 {[%clk 0:00:37.2]} 28... Rfxe6
{[%clk 0:00:02]} 29. Nf6+ {[%clk 0:00:37.7]} 29... Rxf6 {[%clk 0:00:02.2]} 30.
Rxe8+ {[%clk 0:00:38]} 30... Kf7 {[%clk 0:00:03.1]} 31. Ra8 {[%clk 0:00:34.2]}
31... Bc5 {[%clk 0:00:01.8]} 32. Rb8 {[%clk 0:00:33.7]} 32... Rb6 {[%clk
0:00:02.4]} 33. b3 {[%clk 0:00:33]} 33... Bd6 {[%clk 0:00:02.9]} 34. Rd8 {[%clk
0:00:31.5]} 34... Ke7 {[%clk 0:00:01.9]} 35. Rh8 {[%clk 0:00:31.3]} 35... Kf6
{[%clk 0:00:02.4]} 36. Rxh7 {[%clk 0:00:31.2]} 36... Be5 {[%clk 0:00:02.2]} 37.
Kg2 {[%clk 0:00:30.7]} 37... a5 {[%clk 0:00:01.8]} 38. Rh6 {[%clk 0:00:30.9]}
38... Kg7 {[%clk 0:00:01.4]} 39. Rh4 {[%clk 0:00:31.5]} 39... Bf6 {[%clk
0:00:01.7]} 40. Rg4 {[%clk 0:00:31.7]} 40... Be5 {[%clk 0:00:01.4]} 41. Rg5
{[%clk 0:00:30.8]} 41... Bc3 {[%clk 0:00:01.8]} 42. Rxd5 {[%clk 0:00:30.2]}
42... Re6 {[%clk 0:00:02.3]} 43. Rd7+ {[%clk 0:00:28.5]} 43... Kh6 {[%clk
0:00:02.9]} 44. Rxb7 {[%clk 0:00:28.2]} 44... Rf6 {[%clk 0:00:03.5]} 45. h4
{[%clk 0:00:25.7]} 45... Be1 {[%clk 0:00:03]} 46. Rb5 {[%clk 0:00:19.9]} 46...
Rf2+ {[%clk 0:00:02.3]} 47. Kh3 {[%clk 0:00:19]} 47... Rf3 {[%clk 0:00:02.6]}
48. Rg5 {[%clk 0:00:19.6]} 48... Bd2 {[%clk 0:00:02.4]} 49. Rxg6+ {[%clk
0:00:19.3]} 49... Kh5 {[%clk 0:00:01.8]} 50. Rg7 {[%clk 0:00:14.1]} 50... Kh6
{[%clk 0:00:01.7]} 51. Rh7# {[%clk 0:00:13.5]} 1-0

[Event "Early-Titled-Tuesday-Blitz-June-18-2024"]
[Site "Chess.com"]
[Date "2024.06.18"]
[Round "10"]
[White "Shield12"]
[Black "Zhigalko_Sergei"]
[Result "1-0"]
[WhiteElo "2909"]
[BlackElo "2988"]
[TimeControl "180+1"]
[EndTime "9:58:07 PDT"]
[Termination "Shield12 won on time"]

1. e4 {[%clk 0:03:00.9]} 1... c5 {[%clk 0:03:00.1]} 2. Nf3 {[%clk 0:03:00.6]}
2... Nc6 {[%clk 0:03:00.7]} 3. Bb5 {[%clk 0:03:00.7]} 3... Nf6 {[%clk 0:03:01]}
4. Bxc6 {[%clk 0:03:00.3]} 4... dxc6 {[%clk 0:03:01.9]} 5. d3 {[%clk 0:03:00.6]}
5... Bg4 {[%clk 0:03:02]} 6. h3 {[%clk 0:03:00.2]} 6... Bh5 {[%clk 0:03:02.4]}
7. b3 {[%clk 0:02:59.3]} 7... Nd7 {[%clk 0:03:01.4]} 8. g4 {[%clk 0:02:58.1]}
8... Bg6 {[%clk 0:03:01.4]} 9. Bb2 {[%clk 0:02:56.7]} 9... Qc7 {[%clk
0:03:00.9]} 10. Nbd2 {[%clk 0:02:53.9]} 10... e5 {[%clk 0:03:00.7]} 11. Nc4
{[%clk 0:02:53.6]} 11... f6 {[%clk 0:03:00.5]} 12. g5 {[%clk 0:02:54]} 12... Bh5
{[%clk 0:02:57.4]} 13. Rg1 {[%clk 0:02:52]} 13... O-O-O {[%clk 0:02:56.2]} 14.
Qe2 {[%clk 0:02:51.4]} 14... Be7 {[%clk 0:02:18]} 15. gxf6 {[%clk 0:02:46]}
15... gxf6 {[%clk 0:02:17.8]} 16. O-O-O {[%clk 0:02:45.3]} 16... Nf8 {[%clk
0:02:12.9]} 17. Qe3 {[%clk 0:02:10.8]} 17... Ne6 {[%clk 0:02:05.1]} 18. Rde1
{[%clk 0:02:07]} 18... b5 {[%clk 0:01:43.7]} 19. Ncd2 {[%clk 0:01:58.2]} 19...
Bf8 {[%clk 0:01:26.5]} 20. Nh4 {[%clk 0:01:53.2]} 20... Qa5 {[%clk 0:01:02.6]}
21. Kb1 {[%clk 0:01:43.9]} 21... c4 {[%clk 0:01:00.7]} 22. bxc4 {[%clk 0:01:44]}
22... Bc5 {[%clk 0:01:00.6]} 23. Qh6 {[%clk 0:01:32.8]} 23... Bxf2 {[%clk
0:00:48.7]} 24. Nb3 {[%clk 0:01:32]} 24... Qb6 {[%clk 0:00:48.3]} 25. Qxf6
{[%clk 0:01:20.3]} 25... Rhe8 {[%clk 0:00:41.8]} 26. c5 {[%clk 0:01:18.6]} 26...
Bxc5 {[%clk 0:00:39.9]} 27. Nxc5 {[%clk 0:01:16.2]} 27... Qxc5 {[%clk
0:00:39.1]} 28. Qxe5 {[%clk 0:01:07.9]} 28... Qxe5 {[%clk 0:00:20.9]} 29. Bxe5
{[%clk 0:01:08.8]} 29... Nc5 {[%clk 0:00:12.8]} 30. Bh2 {[%clk 0:00:59.1]} 30...
Nb7 {[%clk 0:00:08.5]} 31. Rg7 {[%clk 0:00:54.6]} 31... Rd7 {[%clk 0:00:08.4]}
32. Reg1 {[%clk 0:00:55.2]} 32... Bf7 {[%clk 0:00:07.2]} 33. Kb2 {[%clk
0:00:51.2]} 33... c5 {[%clk 0:00:06.7]} 34. Rxh7 {[%clk 0:00:48.9]} 34... c4
{[%clk 0:00:05.5]} 35. Rgg7 {[%clk 0:00:47.8]} 35... cxd3 {[%clk 0:00:04.6]} 36.
Rxf7 {[%clk 0:00:42.9]} 36... Rxf7 {[%clk 0:00:02]} 37. Rxf7 {[%clk 0:00:43.8]}
37... d2 {[%clk 0:00:02.4]} 38. Rf1 {[%clk 0:00:39.9]} 38... Nc5 {[%clk
0:00:01.8]} 39. Nf5 {[%clk 0:00:38.3]} 39... Nxe4 {[%clk 0:00:01.6]} 40. Rd1
{[%clk 0:00:33.6]} 40... Rd8 {[%clk 0:00:02.1]} 41. Bf4 {[%clk 0:00:27.2]} 41...
b4 {[%clk 0:00:02.7]} 42. Ng3 {[%clk 0:00:19.6]} 42... Nc3 {[%clk 0:00:03.1]}
43. Rxd2 {[%clk 0:00:19.7]} 43... Re8 {[%clk 0:00:03.8]} 44. Rd4 {[%clk
0:00:15.2]} 44... a5 {[%clk 0:00:03.1]} 45. a3 {[%clk 0:00:12.9]} 45... Na4+
{[%clk 0:00:01.7]} 46. Kb3 {[%clk 0:00:13]} 46... Nc5+ {[%clk 0:00:02.1]} 47.
Kc4 {[%clk 0:00:13.2]} 47... bxa3 {[%clk 0:00:01.6]} 48. Kxc5 {[%clk 0:00:12.8]}
48... a2 {[%clk 0:00:02]} 49. Ra4 {[%clk 0:00:13.4]} 49... Re4 {[%clk
0:00:01.5]} 50. Nxe4 {[%clk 0:00:12.9]} 50... a1=Q {[%clk 0:00:02.4]} 51. Nd6+
{[%clk 0:00:13.8]} 51... Kd7 {[%clk 0:00:02.5]} 52. Rxa1 {[%clk 0:00:14.7]} 1-0

[Event "Early-Titled-Tuesday-Blitz-June-18-2024"]
[Site "Chess.com"]
[Date "2024.06.18"]
[Round "10"]
[White "dosto07"]
[Black "Sanyura"]
[Result "1-0"]
[WhiteElo "2625"]
[BlackElo "2528"]
[TimeControl "180+1"]
[EndTime "9:58:09 PDT"]
[Termination "dosto07 won by checkmate"]

1. e4 {[%clk 0:03:00.9]} 1... c5 {[%clk 0:02:13.2]} 2. Nf3 {[%clk 0:03:00.8]}
2... e6 {[%clk 0:02:13.1]} 3. c3 {[%clk 0:02:59.9]} 3... d5 {[%clk 0:02:12.1]}
4. exd5 {[%clk 0:03:00.2]} 4... exd5 {[%clk 0:02:13]} 5. d4 {[%clk 0:03:00.2]}
5... Bd6 {[%clk 0:02:13.6]} 6. Bb5+ {[%clk 0:03:00.1]} 6... Nc6 {[%clk
0:02:13.8]} 7. dxc5 {[%clk 0:02:59.3]} 7... Bxc5 {[%clk 0:02:13.7]} 8. O-O
{[%clk 0:02:59.6]} 8... Ne7 {[%clk 0:02:14.3]} 9. Nbd2 {[%clk 0:02:59.4]} 9...
O-O {[%clk 0:02:14.9]} 10. Nb3 {[%clk 0:02:59.7]} 10... Bb6 {[%clk 0:02:15.5]}
11. Re1 {[%clk 0:02:59.6]} 11... Qd6 {[%clk 0:02:15.9]} 12. Be3 {[%clk
0:02:55.7]} 12... Bc7 {[%clk 0:02:14.1]} 13. Bc5 {[%clk 0:02:52.4]} 13... Qd8
{[%clk 0:02:02.6]} 14. Bxc6 {[%clk 0:02:50.8]} 14... Nxc6 {[%clk 0:02:03.5]} 15.
Bxf8 {[%clk 0:02:50.1]} 15... Kxf8 {[%clk 0:02:03.6]} 16. Qd3 {[%clk 0:02:40.1]}
16... Kg8 {[%clk 0:02:02.5]} 17. Rad1 {[%clk 0:02:40]} 17... Be6 {[%clk
0:02:01.1]} 18. Nbd4 {[%clk 0:02:39.1]} 18... Qf6 {[%clk 0:01:59.7]} 19. Qb5
{[%clk 0:02:24.7]} 19... Nxd4 {[%clk 0:01:28]} 20. Nxd4 {[%clk 0:02:18.8]} 20...
Bb6 {[%clk 0:01:27.6]} 21. a4 {[%clk 0:02:11.2]} 21... Bxd4 {[%clk 0:00:09.6]}
22. Rxd4 {[%clk 0:02:00.4]} 22... b6 {[%clk 0:00:09.9]} 23. Qe2 {[%clk
0:01:36.6]} 23... h6 {[%clk 0:00:08.5]} 24. Qe5 {[%clk 0:01:34.1]} 24... Qg6
{[%clk 0:00:08.2]} 25. Rd2 {[%clk 0:01:24.8]} 25... Rc8 {[%clk 0:00:07.7]} 26.
Qg3 {[%clk 0:01:23]} 26... Qf6 {[%clk 0:00:07.7]} 27. Rd4 {[%clk 0:01:18.4]}
27... Kh7 {[%clk 0:00:06.4]} 28. h3 {[%clk 0:01:16.9]} 28... g5 {[%clk
0:00:05.4]} 29. Re3 {[%clk 0:01:14.9]} 29... Qg6 {[%clk 0:00:05.5]} 30. Qe5
{[%clk 0:01:06.2]} 30... Qb1+ {[%clk 0:00:05.2]} 31. Kh2 {[%clk 0:01:06.1]}
31... Qg6 {[%clk 0:00:04.9]} 32. Rf3 {[%clk 0:01:05.8]} 32... Re8 {[%clk
0:00:03.8]} 33. Rf6 {[%clk 0:01:05.3]} 33... Qg7 {[%clk 0:00:04.4]} 34. Rd3
{[%clk 0:00:55.1]} 34... Bd7 {[%clk 0:00:04.5]} 35. Qd6 {[%clk 0:00:49.9]} 35...
Be6 {[%clk 0:00:03.4]} 36. Rdf3 {[%clk 0:00:48.7]} 36... Kg8 {[%clk 0:00:02.7]}
37. Qc6 {[%clk 0:00:46.2]} 37... Rd8 {[%clk 0:00:02.7]} 38. Qc7 {[%clk
0:00:45.7]} 38... Rc8 {[%clk 0:00:02.9]} 39. Qxa7 {[%clk 0:00:42.5]} 39... b5
{[%clk 0:00:01]} 40. axb5 {[%clk 0:00:41.5]} 40... h5 {[%clk 0:00:01.6]} 41. Qb7
{[%clk 0:00:40.2]} 41... g4 {[%clk 0:00:01.1]} 42. Rxe6 {[%clk 0:00:37.3]} 42...
gxf3 {[%clk 0:00:01.6]} 43. Qxc8+ {[%clk 0:00:37]} 43... Kh7 {[%clk 0:00:02.3]}
44. gxf3 {[%clk 0:00:29.6]} 44... fxe6 {[%clk 0:00:02.2]} 45. Qxe6 {[%clk
0:00:29.8]} 45... Qg5 {[%clk 0:00:02.8]} 46. Qf7+ {[%clk 0:00:28.9]} 46... Kh6
{[%clk 0:00:02.7]} 47. b6 {[%clk 0:00:28.6]} 47... Qe5+ {[%clk 0:00:02]} 48. f4
{[%clk 0:00:28.7]} 48... Qe2 {[%clk 0:00:01.2]} 49. Qf6+ {[%clk 0:00:28.2]}
49... Kh7 {[%clk 0:00:01.7]} 50. Qf5+ {[%clk 0:00:25.5]} 50... Kh6 {[%clk
0:00:01.7]} 51. Qg5+ {[%clk 0:00:26]} 51... Kh7 {[%clk 0:00:02]} 52. Qg3 {[%clk
0:00:24.3]} 52... Qxb2 {[%clk 0:00:01.7]} 53. Qd3+ {[%clk 0:00:22]} 53... Kh6
{[%clk 0:00:01.7]} 54. Qd4 {[%clk 0:00:22.3]} 54... Kg6 {[%clk 0:00:01.6]} 55.
f5+ {[%clk 0:00:19.8]} 55... Kxf5 {[%clk 0:00:01.6]} 56. Qxd5+ {[%clk
0:00:19.6]} 56... Kf4 {[%clk 0:00:02.2]} 57. Qd4+ {[%clk 0:00:18]} 57... Kf3
{[%clk 0:00:02.7]} 58. Qe3# {[%clk 0:00:17.5]} 1-0